{"text_format":"1","workbook":"xlsx","n_sheets":6,"sheets":["000000","Mod.","Giriş","Yolluk ","Nakit","Kanuni Dayanak"],"not_rendered":{"charts":0,"images":0,"macros":1,"external_links":3,"defined_names":75,"comments":1,"pivot_tables":0},"unopened":[],"bounds":{"document_bytes":16777216,"sheet_cells":100000,"rows_first":2000,"rows_last":500,"rows_between":2000,"halvings":0,"cell_chars":16384,"cell_head_chars":4096},"cells_cut":0,"cells_raw":0,"read":"whole","date_system":"1900"}

{"sheet":"000000","index":0,"n_rows":0,"n_cols":0,"rows_kept":0,"cut":false,"hidden":true,"merged":[]}

{"sheet":"Mod.","index":1,"n_rows":124,"n_cols":1,"rows_kept":124,"cut":false,"hidden":true,"merged":[]}
[]
[]
["Function SEL(a, b As Integer) As String"]
["    SEL = Str(a) + \" /\" + Str(b)"]
["End Function"]
[]
["Function okur(sayi As Double) As String"]
[" sayi = Int(sayi) * 1000"]
[" ReDim yd(10) As String"]
[" ReDim od(10) As String"]
[" ReDim bd(10) As String"]
[" ReDim basd(6) As String"]
[" Dim tamp     As String"]
[" Dim adet     As Integer"]
["basd(0) = \"\""]
["basd(1) = \"BİN\""]
["basd(2) = \"MİLYON\""]
["basd(3) = \"MİLYAR\""]
["basd(4) = \"TRİLYON\""]
["basd(5) = \"KATRİLYON\""]
["yd(0) = \"\""]
["yd(1) = \"YÜZ\""]
["yd(2) = \"İKİYÜZ\""]
["yd(3) = \"ÜÇYÜZ\""]
["yd(4) = \"DÖRTYÜZ\""]
["yd(5) = \"BEŞYÜZ\""]
["yd(6) = \"ALTIYÜZ\""]
["yd(7) = \"YEDİYÜZ\""]
["yd(8) = \"SEKİZYÜZ \""]
["yd(9) = \"DOKUZYÜZ \""]
[" od(0) = \"\""]
[" od(1) = \"ON\""]
[" od(2) = \"YİRMİ\""]
[" od(3) = \"OTUZ\""]
[" od(4) = \"KIRK\""]
[" od(5) = \"ELLİ\""]
[" od(6) = \"ATMIŞ\""]
[" od(7) = \"YETMİŞ\""]
[" od(8) = \"SEKSEN\""]
[" od(9) = \"DOKSAN\""]
[" bd(0) = \"\""]
[" bd(1) = \"BİR\""]
[" bd(2) = \"İKİ\""]
[" bd(3) = \"ÜÇ\""]
[" bd(4) = \"DÖRT\""]
[" bd(5) = \"BEŞ\""]
[" bd(6) = \"ALTI\""]
[" bd(7) = \"YEDİ\""]
[" bd(8) = \"SEKİZ\""]
[" bd(9) = \"DOKUZ\""]
[" tamp = Str(sayi)"]
[" adet = Len(tamp) - 1"]
[" Dim bas     As Integer"]
[" Dim basx     As Integer"]
[" Dim yer     As Integer"]
[" "]
[" Dim bal     As Integer"]
[" "]
[" Dim xy     As String"]
[" "]
[" Dim xo     As String"]
[" "]
[" Dim xb     As String"]
[" "]
[" Dim okur1     As String"]
[" "]
[" bas = Int(adet / 3)"]
[" "]
[" basx = Int(adet / 3) + 1"]
[" "]
[" yer = 1"]
[" "]
[" bal = adet Mod 3"]
[" "]
[" okur1 = \" \""]
[" "]
[" If bal = 1 Then"]
[" "]
["           xb = Mid$(tamp, 2, 1)"]
[" "]
["           yer = 2"]
[" "]
["           okur1 = okur1 + bd(Val(xb)) + basd(bas)"]
[" "]
["End If"]
[" "]
[" If bal = 2 Then"]
[" "]
["           xo = Mid$(tamp, 2, 1)"]
[" "]
["           xb = Mid$(tamp, 3, 1)"]
[" "]
["           yer = 3"]
[" "]
["           okur1 = okur1 + od(Val(xo)) + bd(Val(xb)) + basd(bas)"]
[" "]
["End If"]
[" "]
[" If Len(tamp) > 3 Then"]
[" "]
["         For i = bas To 1 Step -1"]
[" "]
["           xy = Mid$(tamp, yer + 1, 1)"]
[" "]
["           xo = Mid$(tamp, yer + 2, 1)"]
[" "]
["           xb = Mid$(tamp, yer + 3, 1)"]
[" "]
["           yer = yer + 3"]
[" "]
["           okur1 = okur1 + yd(Val(xy)) + od(Val(xo)) + bd(Val(xb))"]
["               If Val(xy) + Val(xo) + Val(xb) > 0 Then"]
["                   okur1 = okur1 + basd(i - 1)"]
["               End If"]
["               ' + iif(Val(xy) + Val(xo) + Val(xb) > 0, basd(i - 1), \" \")"]
["         Next i"]
["End If"]
[" "]
["         okur = okur1 + \"/// TL.\""]
["         "]
[" "]
[" End Function"]
[" "]
[" "]

{"sheet":"Giriş","index":2,"n_rows":46,"n_cols":5,"rows_kept":46,"cut":false,"hidden":false,"merged":[]}
[null,"Adı Soyadı","Görevi"]
["Harcama Yetkilisi","XXX","İlçe Milli Milli Eğitim Müdürü"]
["Gerçekleştirme Görevlisi","________________","________________"]
["Muhasebe Yetkilisi","XXX","Malmüdürü V."]
[]
[null,"Adı Soyadı"," Yakınlık Derecesi","Gün Sayısı","Görevi"]
["Yolluk Alanın Adı","XXX","Kendisi",1,"Okul Öncesi Öğrt "]
["Yolluk Alanın Yakınları",null,null,0]
["Yolluk Alanın Yakınları",null,null,0]
["Yolluk Alanın Yakınları",null,null,0]
["Yolluk Alanın Yakınları",null,null,0]
["Yolluk Alanın Yakınları",null,null,0]
["Yolluk Alanın Yakınları",null,null,0]
["Yolluk Alanın Yakınları"]
["Yolluk Alanın Yakınları"]
["Yolluk Alanın Yakınları"]
["Yolluk Alanın Yakınları"]
["Derecesi - Ek Göstergesi","6/1 - 450"]
["Gündeliği",36.25]
["Nereden Nereye Gidildiği","Konya (Çeltik) - Konya (Sarayönü)"]
["Mesafe ( Kilometre)",157]
["Yol Ücreti",22]
["Dairesi","Torunlar İlkokulu"]
["Bütçe Yılı",2017]
["Atanma Tarihi","2017-08-25"]
["Yolluk Alanın T.C. No","XXX"]
["Yolluk Alanın İban No","XXX"]
["Eş Durumundan mı gidiyor","evet"]
["Evini Taşıyacakmı","evet"]
["Eşi Çalışanlar Birlikte mi gidiyor ","evet"]
[]
[]
["NOT: Kilometre (Km) bulunurken Karayolları Genel Müdürlüğünün resmi internet sitesinde yayımlanan iller arası mesafeye uyulmalıdır."]
["Çünkü Özel internet sitelerinden alınan mesafeler farklılık göstermektedir."]
[]
["Örnek:1) Yeşilyurt'tan Ankara'nın Elmadağ ilçesine atanan bir personel için kilometre hesabı şu şekilde olmalıdır"]
["Ankara - Tokat arası 378 Km dir."]
["Yeşilyurt - Tokat arası 55 Km dir."]
["Ankara - Elmadağ arası 41 Km dir."]
["Bu durumda toplam km = 378+55-41=392 Km olmalıdır."]
[]
["Örnek:2) Yeşilyurt'tan Ankara'nın Ayaş ilçesine atanan bir personel için kilometre hesabı şu şekilde olmalıdır."]
["Ankara - Tokat arası 378 Km dir."]
["Yeşilyurt - Tokat arası 55 Km dir."]
["Ankara - Ayaş arası 57 Km dir."]
["Bu durumda toplam km = 378+55+57=490 Km olmalıdır."]

{"sheet":"Yolluk ","index":3,"n_rows":35,"n_cols":14,"rows_kept":35,"cut":false,"hidden":false,"merged":[[1,3,1,8],[2,3,2,8],[3,3,3,8],[2,9,2,10],[3,9,3,10],[1,10,1,11]]}
[]
[null,"Adı ve Soyadı",{"$f":"Giriş!B7","v":"XXX"},"YURTİÇİ",null,null,null,null,null,"Dairesi",{"$f":"Giriş!B23","v":"Torunlar İlkokulu"}]
[null,"Ünvanı",{"$f":"Giriş!E7","v":"Okul Öncesi Öğrt "},"      SÜREKLİ GÖREV YOLLUĞU ",null,null,null,null,null,"Bütçe Yılı",null,{"$f":"Giriş!B24","v":2017}]
[null,"Derece/Kademe-Ek Gösterge",{"$f":"Giriş!B18","v":"6/1 - 450"},"BİLDİRİMİ",null,null,null,null,null,"Önceden Avans Almışsa Aldığı Muhasebe Birimi ve Tarihi ",null,"Yok"]
[null,"Gündeliği",{"$f":"Giriş!B19","v":36.25},null,null,null,null,null,null,"Atama Tarihi",null,{"$f":"Giriş!B25","v":"2017-08-25"}]
[null,null,null,null,null,null,null,null,"      YER DEĞİŞTİRME GİDERİ"]
[null,"Nereden Nereye Gidildiği","Adı Soyadı","Akrabalık Derecesi",null,"     GÜNDELİKLER",null,"Taşıt      Ücreti","Sabit Unsur","                    Değişken Unsur"]
[null,null,null,null,"Gün sayısı","Yevmiye","Tutarı            1",2,3,"Mesafe Km","Tutarı           4 ","1+2+3+4"]
[null,{"$f":"Giriş!B20","v":"Konya (Çeltik) - Konya (Sarayönü)"},{"$f":"C2","v":"XXX"},"Kendisi",{"$f":"(Giriş!D7)","v":1},{"$f":"($C$5)","v":36.25},{"$f":"(F9*E9)","v":36.25},{"$f":"Giriş!B22","v":22},{"$f":"IF(Giriş!B29=\"evet\",ROUND(C5*20,2),\" \")","v":725},{"$f":"IF(Giriş!B29=\"evet\",Giriş!B21,\" \")","v":157},{"$f":"IF(AND(Giriş!B28=\"evet\",Giriş!B29=\"evet\"),C5*J9*2.5/100,IF(AND(Giriş!B28=\"hayır\",Giriş!B29=\"evet\"),C5*J9*5/100,\" \"))","v":142.28125},{"$f":"SUM(G9,H9,I9,K9)","v":925.53125}]
[null,{"$f":"IF(E10=\"1\",B9,\"\")","v":""},{"$f":"IF(E10=\"1\",Giriş!B8,\"\")","v":""},{"$f":"IF(E10=\"1\",Giriş!C8,\"\")","v":""},{"$f":"CONCATENATE(Giriş!D8)","v":"0"},{"$f":"IF(E10=\"1\",$C$5,\"\")","v":""},{"$f":"IF(E10=\"1\",F10*E10,\"\")","v":""},{"$f":"IF(E10=\"1\",Giriş!B22,\"\")","v":""},{"$f":"IF(E10=\"1\",F10*10,\"\")","v":""},{"$f":"IF(AND(E10=\"1\",Giriş!B30=\"evet\"),Giriş!B21,\" \")","v":" "},{"$f":"IF(AND(E10=\"1\",Giriş!B30=\"evet\"),C5*J10*2.5/100,\" \")","v":" "},{"$f":"IF(E10=\"1\",SUM(G10,H10,I10,K10),\"\")","v":""}]
[null,{"$f":"IF(E11=\"1\",B10,\"\")","v":""},{"$f":"IF(E11=\"1\",Giriş!B9,\"\")","v":""},{"$f":"IF(E11=\"1\",Giriş!C8,\"\")","v":""},{"$f":"CONCATENATE(Giriş!D9)","v":"0"},{"$f":"IF(E11=\"1\",$C$5,\"\")","v":""},{"$f":"IF(E11=\"1\",F11*E11,\"\")","v":""},{"$f":"IF(E11=\"1\",Giriş!B22,\"\")","v":""},{"$f":"IF(E11=\"1\",F11*10,\"\")","v":""},null,null,{"$f":"IF(E11=\"1\",G11+H11+I11,\"\")","v":""}]
[null,"",{"$f":"IF(E12=\"1\",Giriş!B10,\"\")","v":""},{"$f":"IF(E12=\"1\",Giriş!C10,\"\")","v":""},{"$f":"CONCATENATE(Giriş!D10)","v":"0"},"","",{"$f":"IF(E12=\"1\",Giriş!B22,\"\")","v":""},{"$f":"IF(E12=\"1\",F12*10,\"\")","v":""},null,null,{"$f":"IF(E12=\"1\",G12+H12+I12,\"\")","v":""}]
[null,"",{"$f":"IF(E13=\"1\",Giriş!B11,\"\")","v":""},{"$f":"IF(E13=\"1\",Giriş!C11,\"\")","v":""},{"$f":"CONCATENATE(Giriş!D11)","v":"0"},"","",{"$f":"IF(E13=\"1\",Giriş!B22,\"\")","v":""},{"$f":"IF(E13=\"1\",F13*10,\"\")","v":""},null,null,{"$f":"IF(E13=\"1\",G13+H13+I13,\"\")","v":""}]
[null,"",{"$f":"IF(E14=\"1\",Giriş!B12,\"\")","v":""},{"$f":"IF(E14=\"1\",Giriş!C12,\"\")","v":""},{"$f":"CONCATENATE(Giriş!D12)","v":"0"},"","",{"$f":"IF(E14=\"1\",Giriş!B22,\"\")","v":""},null,null,null,{"$f":"IF(E14=\"1\",G14+H14,\"\")","v":""}]
[null,"",{"$f":"IF(E15=\"1\",Giriş!B13,\"\")","v":""},{"$f":"IF(E15=\"1\",Giriş!C13,\"\")","v":""},{"$f":"CONCATENATE(Giriş!D13)","v":"0"},"","",{"$f":"IF(E15=\"1\",Giriş!B22,\"\")","v":""},null,null,null,{"$f":"IF(E15=\"1\",G15+H15,\"\")","v":""}]
[null,"",{"$f":"IF(E16=\"1\",Giriş!B14,\"\")","v":""},{"$f":"IF(E16=\"1\",Giriş!C14,\"\")","v":""},{"$f":"CONCATENATE(Giriş!D14)","v":""},"","",{"$f":"IF(E16=\"1\",Giriş!B22,\"\")","v":""},null,null,null,""]
[null,"",{"$f":"IF(E17=\"1\",Giriş!B15,\"\")","v":""},{"$f":"IF(E17=\"1\",Giriş!C15,\"\")","v":""},{"$f":"CONCATENATE(Giriş!D15)","v":""},"","",{"$f":"IF(E17=\"1\",Giriş!B22,\"\")","v":""},null,null,null,""]
[null,"",{"$f":"IF(E18=\"1\",Giriş!B16,\"\")","v":""},{"$f":"IF(E18=\"1\",Giriş!C16,\"\")","v":""},{"$f":"CONCATENATE(Giriş!D16)","v":""},"","",{"$f":"IF(E18=\"1\",Giriş!B22,\"\")","v":""},null,null,null,""]
[null,"",{"$f":"IF(E19=\"1\",Giriş!B18,\"\")","v":""},{"$f":"IF(E19=\"1\",Giriş!C18,\"\")","v":""},{"$f":"CONCATENATE(Giriş!D18)","v":""},"","",{"$f":"IF(E19=\"1\",Giriş!B22,\"\")","v":""},null,null,null,""]
[null,"",{"$f":"IF(E20=\"1\",Giriş!B19,\"\")","v":""},{"$f":"IF(E20=\"1\",Giriş!C19,\"\")","v":""},{"$f":"CONCATENATE(Giriş!D19)","v":""},"","",{"$f":"IF(E20=\"1\",Giriş!B22,\"\")","v":""},null,null,null,""]
[null,"",{"$f":"IF(E21=\"1\",Giriş!B20,\"\")","v":""},{"$f":"IF(E21=\"1\",Giriş!C20,\"\")","v":""},{"$f":"CONCATENATE(Giriş!D20)","v":""},"","",{"$f":"IF(E21=\"1\",Giriş!B22,\"\")","v":""},null,null,null,""]
[null,"",{"$f":"IF(E22=\"1\",Giriş!B21,\"\")","v":""},{"$f":"IF(E22=\"1\",Giriş!C21,\"\")","v":""},{"$f":"CONCATENATE(Giriş!D21)","v":""},"","",{"$f":"IF(E22=\"1\",Giriş!B22,\"\")","v":""},null,null,null,""]
[null,"",{"$f":"IF(E23=\"1\",Giriş!B22,\"\")","v":""},{"$f":"IF(E23=\"1\",Giriş!C22,\"\")","v":""},{"$f":"CONCATENATE(Giriş!D22)","v":""},"","",{"$f":"IF(E23=\"1\",Giriş!B22,\"\")","v":""},null,null,null,""]
[null,"",{"$f":"IF(E24=\"1\",Giriş!B23,\"\")","v":""},{"$f":"IF(E24=\"1\",Giriş!C23,\"\")","v":""},{"$f":"CONCATENATE(Giriş!D23)","v":""},"","",{"$f":"IF(E24=\"1\",Giriş!B22,\"\")","v":""},null,null,null,""]
[null,"",{"$f":"IF(E25=\"1\",Giriş!B24,\"\")","v":""},{"$f":"IF(E25=\"1\",Giriş!C24,\"\")","v":""},{"$f":"CONCATENATE(Giriş!D24)","v":""},"","",{"$f":"IF(E25=\"1\",Giriş!B22,\"\")","v":""},null,null,null,""]
[null,"",{"$f":"IF(E26=\"1\",Giriş!B25,\"\")","v":""},{"$f":"IF(E26=\"1\",Giriş!C25,\"\")","v":""},{"$f":"CONCATENATE(Giriş!D25)","v":""},"","",{"$f":"IF(E26=\"1\",Giriş!B22,\"\")","v":""},null,null,null,""]
[null,null,"G E N E L","T O P L A M",null,null,{"$f":"SUM(G9:G26)","v":36.25},{"$f":"SUM(H9:H26)","v":22},{"$f":"SUM(I9:I26)","v":725},null,{"$f":"SUM(K9:K26)","v":142.28125},{"$f":"ROUND(SUM(L9:L26),2)","v":925.53},null,{"$f":"G27+H27+I27+K27","v":925.53125}]
[]
[null,{"$f":"B9","v":"Konya (Çeltik) - Konya (Sarayönü)"},"arasında yollculuk eden",{"$f":"C2","v":"XXX"},null,null," ve/aile fertlerine ait  yurtiçi sürekli görev yolluğu olarak tahakkuk eden               "]
[null,{"$f":"L27","v":925.53},{"$f":"yaz(L27)","v":"DOKUZYÜZYİRMİBEŞ TL, ELLİÜÇ KR"},null,null,"yi gösteriri bildirimdir"]
[]
[null,null,null,null,null,null,{"$f":"TODAY()","v":"2018-02-05"},null,null,null,"İmza"]
[null,null,null,null,null,"Adı Soyadı :",{"$f":"Giriş!B3","v":"________________"},null,null,null,{"$f":"C2","v":"XXX"}]
[null,null,null,null,null,"Ünvanı       :",{"$f":"Giriş!C3","v":"________________"}]
[null,null,null,null,null,"İmzası       :"]

{"sheet":"Nakit","index":4,"n_rows":118,"n_cols":21,"rows_kept":118,"cut":false,"hidden":false,"merged":[[30,16,30,17],[33,16,33,17],[31,0,31,1],[32,0,32,1],[31,10,31,11],[31,16,31,17],[31,18,31,19],[32,10,32,11],[35,10,35,11],[35,16,35,17],[34,0,34,1],[34,10,34,11],[34,16,34,17],[32,16,32,17],[35,0,35,1],[48,0,48,14],[48,15,49,20],[44,16,44,17],[45,18,46,19],[44,0,44,1],[44,18,44,19],[40,0,40,15],[44,11,44,15],[29,0,29,1],[29,10,29,11],[29,16,29,17],[29,18,29,19],[38,0,38,1],[38,10,38,11],[37,18,37,19],[38,18,38,19],[36,18,36,19],[33,18,33,19],[35,18,35,19],[34,18,34,19],[32,18,32,19],[36,16,36,17],[30,18,30,19],[33,0,33,1],[52,0,52,14],[50,0,51,2],[49,8,49,14],[49,0,49,2],[49,3,49,7],[39,0,39,15],[60,17,60,20],[57,11,57,16],[53,10,53,14],[54,10,55,14],[54,6,55,9],[50,8,51,14],[50,3,51,7],[53,6,53,9],[42,0,42,19],[40,18,40,19],[44,2,44,5],[39,18,39,19],[44,6,44,10],[54,0,55,2],[54,3,55,5],[53,0,53,2],[53,3,53,5],[45,16,46,17],[65,1,65,5],[63,0,63,20],[56,17,56,20],[57,17,57,20],[58,17,58,20],[61,17,61,20],[56,11,56,16],[62,11,62,16],[60,11,60,16],[61,11,61,16],[58,11,58,16],[59,11,59,16],[56,0,56,10],[61,0,61,10],[62,0,62,10],[57,0,57,10],[59,0,59,10],[60,0,60,10],[58,0,58,10],[4,18,4,19],[5,18,6,19],[8,16,8,19],[9,16,10,17],[9,18,10,19],[1,17,6,17],[0,0,0,20],[1,18,1,19],[2,18,2,19],[3,18,3,19],[3,4,3,5],[3,15,3,16],[1,0,1,1],[2,0,2,1],[1,12,2,14],[1,15,2,16],[3,0,4,1],[4,12,4,14],[4,15,4,16],[3,6,4,11],[4,4,4,5],[3,12,3,14],[5,0,5,1],[6,0,6,1],[37,10,37,11],[37,0,37,1],[18,0,18,1],[36,0,36,1],[36,10,36,11],[45,6,46,10],[45,11,46,15],[24,0,24,1],[24,10,24,11],[45,0,46,1],[45,2,46,5],[27,10,27,11],[28,0,28,1],[28,10,28,11],[27,0,27,1],[33,10,33,11],[30,0,30,1],[30,10,30,11],[15,0,15,1],[14,0,14,1],[19,10,19,11],[13,0,13,1],[13,10,13,11],[17,0,17,1],[26,0,26,1],[25,10,25,11],[26,10,26,11],[25,0,25,1],[15,10,15,11],[22,0,22,1],[22,10,22,11],[20,10,20,11],[16,10,16,11],[17,10,17,11],[14,10,14,11],[16,0,16,1],[18,10,18,11],[8,6,9,9],[12,0,12,1],[12,10,12,11],[21,0,21,1],[19,0,19,1],[23,0,23,1],[20,0,20,1],[5,20,6,20],[8,12,9,15],[8,20,10,20],[12,16,12,17],[5,2,5,16],[6,2,6,16],[8,2,9,5],[11,10,11,11],[11,16,11,17],[12,18,12,19],[10,10,10,11],[11,0,11,1],[8,0,10,1],[8,10,8,11],[9,10,9,11],[21,10,21,11],[23,10,23,11],[24,18,24,19],[25,18,25,19],[26,18,26,19],[21,16,21,17],[22,16,22,17],[28,16,28,17],[13,16,13,17],[14,16,14,17],[15,16,15,17],[16,16,16,17],[17,16,17,17],[23,16,23,17],[24,16,24,17],[19,16,19,17],[20,16,20,17],[1,2,1,11],[2,2,2,11],[39,16,39,17],[40,16,40,17],[37,16,37,17],[38,16,38,17],[18,16,18,17],[27,16,27,17],[11,18,11,19],[19,18,19,19],[20,18,20,19],[21,18,21,19],[27,18,27,19],[28,18,28,19],[13,18,13,19],[14,18,14,19],[17,18,17,19],[18,18,18,19],[22,18,22,19],[15,18,15,19],[16,18,16,19],[25,16,25,17],[26,16,26,17],[23,18,23,19]]}
["ÖDEME EMRİ BELGESİ"]
["Saymanlık Kodu",null,42125,null,null,null,null,null,null,null,null,null,"Bütçe Yılı",null,null,{"$f":"YEAR(TODAY())","v":2018},null,"İ l g i l i n i n ","Adı, Soyadı",null,{"$f":"Giriş!B7","v":"XXX"}]
["Saymanlık Adı",null,"Çeltik Malmüdürlüğü",null,null,null,null,null,null,null,null,null,null,null,null,null,null,null,"T.C. /Vergi Kimlik No.",null,{"$f":"Giriş!B26","v":"XXX"}]
["Kurum-Birim Kodu",null,1,2,"Birim",null,"Yevmiyenin",null,null,null,null,null,"Tarihi",null,null,null,null,null,"Banka Şube Adı",null,"Şekerbank Emirdağ Şubesi"]
[null,null,13,"01","285",null,null,null,null,null,null,null,"No.su",null,null,null,null,null,"Banka Hesap No.",null,{"$f":"Giriş!B27","v":"XXX"}]
["Kurum Adı",null,"Milli Eğitim Bakanlığı",null,null,null,null,null,null,null,null,null,null,null,null,null,null,null,"Bağlı Old. Vergi Dairesi",null,"Çeltik Malmüdürlüğü"]
["Birim Adı",null,"Konya/ÇELTİK İlçe Milli Eğitim Müdürlüğü (İlköğretim Okulları)"]
[]
["Hesap No.",null,"Kurumsal Kod",null,null,null,"Fonksiyonel Kod",null,null,null,"Finans.",null,"Ekonomik / Y.Hesap Kodu",null,null,null,"T u t a r",null,null,null,"Hesap / Ayrıntı Adı"]
[null,null,null,null,null,null,null,null,null,null,"Kodu",null,null,null,null,null,"B o r ç",null,"A l a c a k"]
[null,null,1,2,3,4,"1","2","3","4",1,null,1,2,3,4]
[630,null,"13","01","31","62","9","1","2","0",1,null,"03","03","02","01",{"$f":"'Yolluk '!L27","v":925.53},null,null,null,"Yurtiçi Sürekli Görev Yolluğu"]
[600,null,null,null,null,null,null,null,null,null,null,null,"01","05","01","01",null,null,{"$f":"ROUND(Q12*0.0066,2)","v":6.11},null,"Damga Vergisi"]
[325,null,null,null,null,null,null,null,null,null,null,null,"02","00","00","00",null,null,{"$f":"Q40-Q16-Q18-S13","v":919.41999999999985},null,"Personel Yolluk Giderleri"]
[]
[830,null,"13","01","31","62","9","1","2","0",1,null,"03","03","02","01",{"$f":"Q12","v":925.53},null,null,null,{"$f":"U12","v":"Yurtiçi Sürekli Görev Yolluğu"}]
[835,null,null,null,null,null,null,null,null,null,null,null,"00","00","00","00",null,null,{"$f":"Q16","v":925.53},null,"Gider Yansıtma Hesabı"]
[805,null,null,null,null,null,null,null,null,null,null,null,"00","00","00","00",{"$f":"SUM(S19:S19)","v":6.11},null,null,null,"Gelir Yansıtma Hesabı"]
[800,null,null,null,null,null,null,null,null,null,null,null,"01","05","01","01",null,null,{"$f":"S13","v":6.11},null,"Damga Vergisi"]
[]
[]
[]
[]
[]
[]
[]
[]
[]
[]
[]
[]
[]
[]
[]
[]
[]
[]
[]
[]
["T o p l a m",null,null,null,null,null,null,null,null,null,null,null,null,null,null,null,{"$f":"SUM(Q12:Q39)","v":1857.1699999999998},null,{"$f":"SUM(S12:S39)","v":1857.1699999999998}]
["Bütçe Gideri Tahakkuk Toplamı",null,null,null,null,null,null,null,null,null,null,null,null,null,null,null,{"$f":"(S17)","v":925.53}]
[]
[{"$f":"CONCATENATE(\"Yukarıda yazılı  \",yaz(Q41),\" Bütçe Gideri tahakkuk ettirilmiştir. Ödenmesi/Mahsubu gerekir.\")","v":"Yukarıda yazılı  DOKUZYÜZYİRMİBEŞ TL, ELLİÜÇ KR Bütçe Gideri tahakkuk ettirilmiştir. Ödenmesi/Mahsubu gerekir."},null,null,null,null,null,null,null,null,null,null,null,null,null,null,null,null,null,null,null,{"$f":"TODAY()","v":"2018-02-05"}]
[null,null,null,null,null,null,null,null,null,null,null,null,null,null,null,null,null,null,null,null,"Düzenleyen"]
["ÖdemeEmriBelg.No.",null,"Tahakkuk Eden",null,null,null,"Özel Gider İndirimi",null,null,null,null,"Kesinti Toplamı",null,null,null,null,"Ödenmesi Gereken",null,"Çek / Gönderme Emri No."]
[null,null,{"$f":"Q41","v":925.53},null,null,null,{"$f":"Q37","v":0},null,null,null,null,{"$f":"SUM(S13:T13)","v":6.11},null,null,null,null,{"$f":"C46+G46-L46","v":919.42},null,null,null,{"$f":"Giriş!B3","v":"________________"}]
[null,null,null,null,null,null,null,null,null,null,null,null,null,null,null,null,null,null,null,null,{"$f":"Giriş!C3","v":"________________"}]
[]
["Tetkik Eden",null,null,null,null,null,null,null,null,null,null,null,null,null,null,"Açıklama ve Ekler"]
["Memur",null,null,"Şef",null,null,null,null,"Muhasebe Yetkilisi Yard."]
[null,null,null,null,null,null,null,null,null,null,null,null,null,null,null,"1.","Bordro",null,null,"(1 Adet) "]
[null,null,null,null,null,null,null,null,null,null,null,null,null,null,null,"2.","Atama Kararnamesi",null,null,"(1 Adet) "]
["Ödemeye Esas Belgenin",null,null,null,null,null,null,null,null,null,null,null,null,null,null,"3.","Personel Nakil Bildirimi",null,null,"(1 Adet) "]
["Türü",null,null,"Tarihi",null,null,"No.su",null,null,null,"Tutarı",null,null,null,null,"4.","Görevden Ayrılma Yazısı",null,null,"(1 Adet) "]
[null,null,null,null,null,null,null,null,null,null,null,null,null,null,null,"5.","Yazı (Raiç Bedel) ",null,null,"(1 Adet)"]
[]
[null,null,null,null,null,null,null,null,null,null,null,"Uygundur",null,null,null,null,null,"Ödeyiniz / Mahsup Ediniz"]
[{"$f":"CONCATENATE(\".../\",TEXT(TODAY(),\"aa\"),\"/\",YEAR(TODAY()))","v":".../02/2018"},null,null,null,null,null,null,null,null,null,null,{"$f":"A58","v":".../02/2018"},null,null,null,null,null,{"$f":"A58","v":".../02/2018"}]
[null,null,null,null,null,null,null,null,null,null,null,"Harcama Yetkilisi",null,null,null,null,null,"Muhasebe Yetkilisi"]
[]
[null,null,null,null,null,null,null,null,null,null,null,{"$f":"Giriş!B2","v":"XXX"},null,null,null,null,null,{"$f":"Giriş!B4","v":"XXX"}]
[null,null,null,null,null,null,null,null,null,null,null,{"$f":"Giriş!C2","v":"İlçe Milli Milli Eğitim Müdürü"},null,null,null,null,null,{"$f":"Giriş!C4","v":"Malmüdürü V."}]
[]
[{"$f":"CONCATENATE(\"Yalnız   : \",yaz(Q46),\" aldım.\")","v":"Yalnız   : DOKUZYÜZONDOKUZ TL, KIRKİKİ KR aldım."}]
[]
[]
[]
[]
[]
[]
[]
[]
[]
[]
[]
[]
[]
[]
[]
[]
[]
[]
[]
[]
[]
[]
[]
[]
[]
[]
[]
[]
[]
[]
[]
[]
[]
[]
[]
[]
[]
[]
[]
[]
[]
[]
[]
[]
[]
[]
[]
[]
[]
[]
[]
[]
[]
["TOPLAM"]

{"sheet":"Kanuni Dayanak","index":5,"n_rows":61,"n_cols":2,"rows_kept":61,"cut":false,"hidden":false,"merged":[]}
["25/02/2011 tarihli ve 27857 SRG (6111 sayılı kanun ile değişik)"]
["MADDE 118- 27/6/1989 tarihli ve 375 sayılı Kanun Hükmünde Kararnamenin 1 inci maddesinin (D) bendinde yer alan “beşyüz milyon lira” ibaresi “(12.105) gösterge rakamının memur aylık katsayısı ile çarpımı sonucu bulunacak” şeklinde, ek 4 üncü maddesi aşağıdaki şekilde değiştirilmiş ve Kanun Hükmünde Kararnameye aşağıdaki ek madde eklenmiştir."]
["          Kanun Numarası             : 6245"]
["          Kabul Tarihi                    : 10/2/1954"]
["          Yayımlandığı R.Gazete   : Tarih : 18/2/1954   Sayı : 8637"]
["          Yayımlandığı Düstur       : Tertip : 3   Cilt : 35   Sayfa : 321"]
[]
["                                                                     BÖLÜM III"]
["                                                                     Aile Masrafı"]
["             Aile masrafının miktarı:"]
["             Madde 44 – (Değişik: 11/12/1981 - 2562/18 md.)"]
["             Aile masrafı, aile fertlerinden her biri için memur veya hizmetlilerin bu Kanuna göre müstehak oldukları taşıt ücreti ile gündeliklerinden oluşur."]
["             Ancak, özel taşıt kiralanması suretiyle gidilmesi zorunlu olan yerlere memur veya hizmetli ile birlikte seyahat eden aile fertleri için ayrıca taşıt ücreti ödenmez."]
["                                                                     BÖLÜM IV"]
["                                                            Yer Değiştirme Masrafı"]
["             Yurtiçinden yer değiştirme masrafı:"]
["             Madde 45 – (Değişik: 11/12/1981 - 2562/19 md.)"]
["             Yurtiçinde yer değiştirme masrafı memur veya hizmetlinin;"]
["             a. Kendisi için yurtiçi gündeliğinin yirmi katı,"]
["             b. Harcıraha müstehak aile fertlerinin her biri için yurtiçi gündeliğinin on katı (Bu miktar yurtiçi gündeliğinin kırk katını aşamaz),"]
["             c. Her kilometre veya denizmili başına, yalnız kendisi için yurtiçi gündeliğinin yüzde beşi,"]
["             Olarak hesaplanır."]
["             (…) (1) 13, 15, 16 ve 17 nci maddelerde yazılı olup aile fertlerinin memur veya hizmetli ile birlikte olmaksızın başka bir mahalle gitmeleri veya bu mahalden dönüşleri dolayısıyla harcırah verilmesi kabul edilen hallerde, aile fertlerine verilecek yer değiştirme masrafı, bunlardan birisinin memur veya hizmetli olarak nazarı itibara alınması suretiyle hesaplanır."]
["             (Ek: 16/6/1983 - 2851/4 md.) Bu maddeye göre harcıraha müstehak memur veya hizmetlinin eski görev mahallinden yeni görev mahalline atanan memur veya hizmetli eşine (c) bendi uyarınca hesaplanacak miktarın yarısı ödenir."]
["             Yurtdışı yer değiştirme masrafı:"]
["             Madde 46 – (Değişik: 11/12/1981 - 2562/20 md.)"]
["             Yurtdışı yer değiştirme masrafı memur veya hizmetlinin;"]
["             a. Kendisi için yurtdışı gündeliğinin yirmi katı,"]
["             b. Harcıraha müstehak aile fertlerinin her biri için yurtdışı gündeliğinin sekiz katı (Bu miktar yurtdışı gündeliğinin otuziki katını aşamaz),"]
["             c. Her kilometre veya denizmili başına yalnız kendisi için yurtdışı gündeliğinin binde yedisi,"]
["             Olarak hesaplanır."]
["             (Mülga ikinci fıkra: 1/7/2006-5538/2 md.)"]
["(1) Bu arada yer alan \"11,“ ibaresi, 21/4/2005 tarihli  ve 5335 sayılı Kanunun 4 üncü maddesiyle madde metninden çıkartılmıştır."]
["             (Ek: 16/6/1983 - 2851/5 md.) Yabancı ülkelerden dönüşlerde, yer değiştirme masrafının yukarıdaki (c) bendine göre verilecek kısmı, aynı şehirde ikamet eden her ikisi de memur veya hizmetli olan eşlerden yalnız birisi için hesaplanıp ödenir.(1)"]
["             Hesaba esas tutulacak kilometre veya denizmili:"]
["             Madde 47 – (Değişik: 11/12/1981 - 2562/21 md.)"]
["             Yer değiştirme mesrafının hesabında dikkate alınacak kilometre veya denizmili,"]
["             a. Yurtiçinde, iki mahal arasında mutat olan, gidip gelmeye elverişli en kısa kara ve deniz yolu,"]
["             b. Yurtdışında, ülkeler ve bölgelerine göre, Dışişleri ve Ulaştırma Bakanlıklarının görüşü alındıktan sonra Maliye Bakanlığının teklifi üzerine Bakanlar Kurulu tarafından belirlenecek mesafeler,"]
["             Esas tutularak bulunur."]
["             Hilafı hakikat beyanname verenler:"]
["             Madde 60 – Bu kanuna göre tahakkuk edecek, istihkakın miktarını artıracak şekilde-maddi hatalar hariç-hilafı hakikat beyanname verenler hakkında, mensup oldukları kurumların inzibat, memurin, müdürler komisyonları gibi salahiyetli heyet ve makamlarının kararı ile ve işlenen suçun mahiyet ve şümülüne göre rütbe veya sınıf tenzili veya ihraç cezalarından her hangi biri tatbik olunur ve bu gibilerin bu suretle aldıkları fazla harcırah, Devlet özel idare ve belediyelerce Amme Alacaklarının Tahsil Usulü Kanununa göre ve bu kanuna tabi diğer kurumlarca da umumi hükümlere tevfikan tahsil olunur."]
["             Suçlu hakkında idarece ittihaz olunan inzıbati kararlar cezai takibata mani olmayıp bu gibiler hakkında ayrıca hukuku amme davası ikame ve kanuni takibat icra olunur."]
[]
["Yurtiçi sürekli görev yolluğu (Merkezi Yönetim Harcama Blegeleri Yönetmeliği) "]
["Madde 23 –Yurtiçi sürekli görev yolluklarının ödenmesinde;"]
[" - Atamalarda atama onayı, diğer hallerde harcama talimatı, "]
["- Yurtiçi / Yurtdışı Sürekli Görev Yolluğu Bildirimi (Örnek : 28),"]
["- Resmi mesafe haritasında gösterilmeyen yerler için yetkili mercilerden alınacak onaylı mesafe cetveli, "]
["ödeme belgesine bağlanır."]
["Kamu görevlilerinden emekliliğini isteyen veya emekliye sevk olunanlara, haklarında toptan ödeme hükümleri uygulananlara, emekli iken yeniden hizmete alındıktan sonra cezaen olmamak üzere görevlerine son verilenlere ve terhis olunan yedek subaylara ve bunlardan görevde iken ölenlerin kanuni mirasçılarına mevzuatları gereğince verilen tazminatların ödenmesinde ise yetkili makamın onayı "]
[]
["DERECE","EK GÖSTERGE"]
[8,450]
[7,500]
[6,800]
[5,900]
[4,1100]
[3,1600]
[2,2200]
[1,3000]